bitfinex-derivatives/quotes_BTCF0:USTF0_20250117
["timestamp","ask_amount","ask_price","bid_price","bid_amount"]
[1737153198461,0.3608,104520.0,104510.0,0.30927399]
[1737153199070,0.91809487,104530.0,104520.0,0.047815]
[1737153199368,0.40353487,104530.0,104520.0,0.1634569]
[1737153199873,0.40353487,104530.0,104520.0,0.33438994]
[1737153200875,0.37163487,104530.0,104520.0,0.33438994]
[1737153201076,0.37163487,104530.0,104520.0,0.45527064]
[1737153201777,0.3808,104540.0,104530.0,0.047811]
[1737153201976,0.3808,104540.0,104530.0,0.13573195]
[1737153201977,0.39154283,104540.0,104530.0,0.13573195]
[1737153203773,0.39154283,104540.0,104530.0,0.36394099]
[1737153204183,0.03074283,104540.0,104530.0,0.36394099]
[1737153204771,0.03074283,104540.0,104530.0,0.72474099]
[1737153205177,0.03074283,104540.0,104530.0,1.05638041]
[1737153206274,0.03074283,104540.0,104530.0,0.69558041]
[1737153206474,0.03353552,104550.0,104540.0,0.047806]
[1737153206670,0.04265714,104550.0,104540.0,0.1834479]
[1737153208079,0.01055714,104550.0,104540.0,0.80045025]
[1737153208269,0.425,104560.0,104540.0,0.80045025]
[1737153208475,0.425,104560.0,104550.0,0.12562295]
[1737153209275,0.0642,104560.0,104550.0,0.12562295]
[1737153209585,0.0642,104560.0,104550.0,0.63989234]
[1737153209586,0.0327,104560.0,104550.0,0.63989234]
[1737153209789,0.3918,104570.0,104560.0,0.047797]
[1737153209991,0.3918,104570.0,104560.0,0.1634389]
[1737153210181,0.3918,104570.0,104560.0,0.10561795]
[1737153210376,0.3918,104570.0,104560.0,0.1634389]
[1737153210579,0.40230578,104570.0,104560.0,0.1634389]
[1737153210791,0.3608,104570.0,104560.0,0.1634389]
[1737153210975,0.42563498,104580.0,104570.0,0.047792]
[1737153211285,0.42563498,104580.0,104570.0,0.10561295]
[1737153212781,0.42563498,104580.0,104570.0,0.50493889]
[1737153213178,0.43625722,104580.0,104570.0,0.50493889]
[1737153213482,0.43625722,104580.0,104570.0,0.53486385]
[1737153214082,0.07545722,104580.0,104570.0,0.3066776]
[1737153214387,0.43625722,104580.0,104570.0,0.3066776]
[1737153215082,0.01205722,104580.0,104570.0,0.6674776]
[1737153215987,0.01062224,104580.0,104570.0,0.6674776]
[1737153216185,0.3925,104590.0,104570.0,0.6674776]
[1737153216686,0.40303677,104590.0,104580.0,0.047788]
[1737153218784,0.40303677,104590.0,104580.0,0.13553391]
[1737153220989,0.04223677,104590.0,104580.0,0.13553391]
[1737153221189,0.04223677,104590.0,104580.0,0.49633391]
[1737153221391,0.04223677,104590.0,104580.0,0.13553391]
[1737153225289,0.04223677,104590.0,104580.0,0.49633391]
[1737153225483,0.04223677,104590.0,104580.0,0.13553391]
[1737153225686,0.04223677,104590.0,104580.0,0.49633391]
[1737153226286,0.04223677,104590.0,104580.0,0.13553391]
[1737153227695,0.04223677,104590.0,104580.0,0.3066736]
[1737153231398,0.04223677,104590.0,104580.0,0.53485985]
[1737153232098,0.04223677,104590.0,104580.0,0.89565985]
[1737153232299,0.04223677,104590.0,104580.0,0.53485985]
[1737153233300,0.04223677,104590.0,104580.0,0.50467953]
[1737153234503,0.04223677,104590.0,104580.0,0.65657241]
[1737153235391,0.04223677,104590.0,104580.0,0.714138]
[1737153235795,0.04223677,104590.0,104580.0,1.074938]
[1737153236801,0.04223677,104590.0,104580.0,0.714138]
[1737153238498,0.04223677,104590.0,104580.0,1.074938]
[1737153238705,0.04223677,104590.0,104580.0,1.13233628]
[1737153238897,0.04223677,104590.0,104580.0,0.71397069]
[1737153239292,0.04223677,104590.0,104580.0,1.07477069]
[1737153240206,0.04223677,104590.0,104580.0,1.3542518]
[1737153241299,0.04223677,104590.0,104580.0,1.29668621]
[1737153241600,0.54088536,104590.0,104580.0,0.59278271]
[1737153242801,0.54088536,104590.0,104580.0,0.59955456]
[1737153244213,0.54088536,104590.0,104580.0,0.94305811]
[1737153245502,0.65464202,104590.0,104580.0,0.59955456]
[1737153249407,0.54088536,104590.0,104580.0,0.82851194]
[1737153250916,0.65464202,104590.0,104580.0,0.27674538]
[1737153252316,0.54088536,104590.0,104580.0,0.27674538]
[1737153259822,0.54088536,104590.0,104580.0,0.4483256]
[1737153261616,0.54088536,104590.0,104580.0,0.27674538]
[1737153264325,0.54088536,104590.0,104580.0,0.56299834]
[1737153265521,0.54088536,104590.0,104580.0,0.83330885]
[1737153266424,0.59845095,104590.0,104580.0,0.71883968]
[1737153266620,0.59845095,104590.0,104580.0,0.4928238]
[1737153267119,0.59845095,104590.0,104580.0,0.4835238]
[1737153268120,0.7407391,104590.0,104580.0,0.17173933]
[1737153273334,0.7407391,104590.0,104580.0,0.13495933]
[1737153273527,0.7407391,104590.0,104580.0,0.09334433]
[1737153274423,0.7407391,104590.0,104560.0,0.39129755]
[1737153274623,0.77916559,104570.0,104560.0,0.39129755]
[1737153274825,0.82695759,104570.0,104560.0,0.39129755]
[1737153276839,0.82695759,104570.0,104560.0,0.047794]
[1737153278632,0.77916559,104570.0,104560.0,0.047794]
[1737153280139,0.78909798,104570.0,104560.0,0.047794]
[1737153281132,0.83688998,104570.0,104560.0,0.047794]
[1737153291553,0.83688998,104570.0,104560.0,0.39129755]
[1737153296959,0.95095106,104570.0,104560.0,0.39129755]
[1737153298561,0.89338547,104570.0,104560.0,0.39129755]
[1737153298754,0.95095106,104570.0,104560.0,0.39129755]
[1737153299556,0.98115106,104570.0,104560.0,0.39129755]
[1737153300665,0.98115106,104570.0,104560.0,0.33452313]
[1737153303973,0.92358547,104570.0,104560.0,0.33452313]
[1737153304264,0.98115106,104570.0,104560.0,0.33452313]
[1737153304668,0.84559347,104570.0,104560.0,0.33452313]
[1737153304869,0.48479347,104570.0,104560.0,0.39208872]
[1737153305069,0.48479347,104570.0,104560.0,0.45648872]
[1737153306764,0.37073239,104570.0,104560.0,0.47634755]
[1737153310272,0.37073239,104570.0,104560.0,0.26521314]
[1737153310660,0.37073239,104570.0,104560.0,0.31300814]
[1737153310863,0.37073239,104570.0,104560.0,0.65668475]
[1737153313468,0.37073239,104570.0,104560.0,0.71878475]
[1737153320978,0.37073239,104570.0,104560.0,0.66121916]
[1737153321274,0.37073239,104570.0,104560.0,0.65668475]
[1737153322473,0.37073239,104570.0,104560.0,0.4490372]
[1737153324784,0.37073239,104570.0,104560.0,0.65668475]
[1737153325776,0.37073239,104570.0,104560.0,0.4490372]
[1737153326270,0.40293239,104570.0,104560.0,0.4490372]
[1737153326586,0.40293239,104570.0,104560.0,0.4012422]
[1737153326983,0.40293239,104570.0,104560.0,0.60888975]
[1737153329883,0.40293239,104570.0,104560.0,1.02725534]
[1737153329884,0.04213239,104570.0,104560.0,1.02725534]
[1737153330182,0.24228815,104600.0,104560.0,1.48492843]
[1737153330483,0.17109036,104610.0,104590.0,0.53357062]
[1737153330683,0.033,104620.0,104600.0,0.54033118]
[1737153330986,0.033,104620.0,104610.0,0.05756559]
[1737153331291,0.033,104620.0,104610.0,0.41836559]
[1737153332384,0.033,104620.0,104610.0,1.25049605]
[1737153332687,0.01007453,104630.0,104610.0,1.30806164]
[1737153332882,0.4564,104640.0,104620.0,0.47593118]
[1737153333185,0.4564,104640.0,104630.0,0.05756559]
[1737153334688,0.4564,104640.0,104630.0,0.62441117]
[1737153336285,0.4564,104640.0,104630.0,0.28551174]
[1737153336481,0.46633469,104640.0,104630.0,0.28551174]
[1737153339978,0.46633469,104640.0,104630.0,0.05756559]
[1737153343280,0.52390028,104640.0,104620.0,0.64631174]
[1737153343681,0.46633469,104640.0,104630.0,0.05756559]
[1737153344193,0.46633469,104640.0,104620.0,0.64631174]
[1737153348396,0.37073469,104640.0,104630.0,0.05756559]
[1737153349089,0.37073469,104640.0,104620.0,0.58874615]
[1737153349286,0.37073469,104640.0,104620.0,0.64631174]
[1737153351799,0.0316,104630.0,104620.0,0.64631174]
[1737153354197,0.0316,104630.0,104620.0,0.99392691]
[1737153355794,0.0316,104630.0,104620.0,0.63312691]
[1737153357203,0.0316,104630.0,104620.0,0.57556132]
[1737153357792,0.0316,104630.0,104620.0,0.93636132]
[1737153357994,0.0316,104630.0,104620.0,0.99399865]
[1737153359205,0.0644,104630.0,104620.0,0.99399865]
[1737153359698,0.0644,104630.0,104620.0,1.2016462]
[1737153360504,0.0644,104630.0,104620.0,0.89841179]
[1737153361401,0.0644,104630.0,104620.0,0.89124729]
[1737153362406,0.54033118,104630.0,104600.0,0.40079865]
[1737153362607,0.41836559,104610.0,104600.0,0.40079865]
[1737153362903,0.77916559,104610.0,104600.0,0.40079865]
[1737153363103,0.80986559,104610.0,104600.0,0.40079865]
[1737153363807,0.80986559,104610.0,104600.0,0.27669505]
[1737153365100,0.7523,104610.0,104600.0,0.27669505]
[1737153366107,0.7523,104610.0,104600.0,0.33426064]
[1737153366308,0.7523,104610.0,104600.0,0.27669505]
[1737153366811,0.7523,104610.0,104600.0,0.33426064]
[1737153367397,0.3915,104610.0,104600.0,0.33426064]
[1737153367808,0.0307,104610.0,104600.0,0.39182623]
[1737153368105,0.65800622,104630.0,104620.0,0.04777]
[1737153368300,1.01880622,104630.0,104620.0,0.04777]
[1737153368701,0.60044063,104630.0,104620.0,0.10533559]
[1737153369113,0.4573,104630.0,104620.0,0.10533559]
[1737153369312,0.4573,104630.0,104620.0,0.04777]
[1737153369507,0.51486559,104630.0,104620.0,0.04777]
[1737153369704,0.0644,104630.0,104620.0,0.10533559]
[1737153369907,0.0328,104630.0,104620.0,0.10533559]
[1737153370111,0.0328,104630.0,104620.0,0.19490118]
[1737153370305,0.0328,104630.0,104620.0,0.78461723]
[1737153370506,0.14532943,104640.0,104630.0,0.047765]
[1737153370704,0.11836384,104640.0,104630.0,0.46613059]
[1737153371419,0.11836384,104640.0,104630.0,0.408565]
[1737153371606,0.11836384,104640.0,104630.0,0.69471007]
[1737153371809,0.10613469,104640.0,104630.0,0.69471007]
[1737153372321,0.07403469,104640.0,104630.0,0.78235895]
[1737153373108,0.07403469,104640.0,104630.0,0.78209537]
[1737153373716,0.04053469,104640.0,104630.0,0.78209537]
[1737153373922,0.0306,104640.0,104630.0,0.78209537]
[1737153375427,0.0306,104640.0,104630.0,0.83932438]
[1737153376126,0.03979564,104650.0,104640.0,0.04776]
[1737153376326,0.07089564,104650.0,104640.0,0.04776]
[1737153378329,0.07089564,104650.0,104640.0,0.56064206]
[1737153379531,0.07089564,104650.0,104640.0,0.27570758]
[1737153380328,0.07089564,104650.0,104640.0,0.63650758]
[1737153382226,0.07089564,104650.0,104640.0,0.92144206]
[1737153383526,0.07089564,104650.0,104640.0,0.40856]
[1737153385222,0.07089564,104650.0,104640.0,0.69349448]
[1737153386637,0.07089564,104650.0,104640.0,0.9210019]
[1737153390533,0.07089564,104650.0,104640.0,0.63606742]
[1737153393242,0.07089564,104650.0,104640.0,0.27526742]
[1737153393435,0.07089564,104650.0,104640.0,0.63606742]
[1737153393840,0.07089564,104650.0,104640.0,0.9210019]
[1737153394837,0.07089564,104650.0,104640.0,0.5602019]
[1737153395037,0.07089564,104650.0,104640.0,0.33269448]
[1737153395343,0.07089564,104650.0,104640.0,0.69349448]
[1737153395941,0.07089564,104650.0,104640.0,0.33269448]
[1737153398645,0.07089564,104650.0,104640.0,0.39113408]
[1737153399144,0.07089564,104650.0,104640.0,0.44864291]
[1737153399644,0.07089564,104650.0,104640.0,0.39113408]
[1737153400045,0.07089564,104650.0,104640.0,0.6934138]
[1737153402243,0.07089564,104650.0,104640.0,0.75092263]
[1737153402444,0.07089564,104650.0,104640.0,0.6934138]
[1737153402745,0.07089564,104650.0,104640.0,0.35003972]
[1737153407554,0.43169564,104650.0,104640.0,0.35003972]
[1737153408055,0.07089564,104650.0,104640.0,0.35003972]
[1737153408248,0.43169564,104650.0,104640.0,0.35003972]
[1737153409250,0.07089564,104650.0,104640.0,0.35003972]
[1737153409656,0.43169564,104650.0,104640.0,0.35003972]
[1737153410158,0.07089564,104650.0,104640.0,0.35003972]
[1737153412251,0.07089564,104650.0,104640.0,0.40754855]
[1737153412561,0.07089564,104650.0,104640.0,0.38313972]
[1737153415359,0.07089564,104650.0,104640.0,0.74393972]
[1737153415546,0.07089564,104650.0,104640.0,0.38313972]
[1737153415952,0.07089564,104650.0,104640.0,0.44064855]
[1737153418162,0.43169564,104650.0,104640.0,0.44064855]
[1737153419163,0.43169564,104650.0,104640.0,0.72612246]
[1737153420065,0.43169564,104650.0,104640.0,0.78363129]
[1737153420265,0.43169564,104650.0,104640.0,0.72612246]
[1737153421359,0.07089564,104650.0,104640.0,0.72612246]
[1737153421562,0.43169564,104650.0,104640.0,0.72612246]
[1737153422068,0.07089564,104650.0,104640.0,0.72612246]
[1737153422665,0.53696047,104650.0,104640.0,0.64526246]
[1737153424160,0.6801011,104650.0,104640.0,0.51443161]
[1737153425569,0.79460236,104650.0,104640.0,0.22863627]
[1737153426967,0.65146173,104650.0,104640.0,0.22863627]
[1737153427963,0.29465742,104640.0,104620.0,0.46150371]
[1737153428157,0.91508266,104630.0,104620.0,0.42827742]
[1737153428363,0.91508266,104630.0,104620.0,0.37660369]
[1737153428563,0.85757383,104630.0,104620.0,0.37660369]
[1737153428964,0.91508266,104630.0,104620.0,0.37660369]
[1737153429165,0.91508266,104630.0,104620.0,0.35126332]
[1737153429368,0.91508266,104630.0,104620.0,0.29836013]
[1737153429568,0.047774,104610.0,104600.0,0.047776]
[1737153429775,0.46608283,104610.0,104600.0,0.047776]
[1737153433472,0.47577877,104610.0,104600.0,0.047776]
[1737153434279,0.47577877,104610.0,104590.0,0.50016468]
[1737153434673,0.47577877,104610.0,104590.0,0.13936468]
[1737153436269,0.05750883,104600.0,104590.0,0.08185585]
[1737153436474,0.41830883,104600.0,104570.0,0.047792]
[1737153436683,0.3608,104580.0,104570.0,0.047792]
[1737153437586,0.36087385,104580.0,104570.0,0.047792]
[1737153438185,0.36087385,104580.0,104570.0,0.10530083]
[1737153438989,0.36087385,104580.0,104570.0,0.16280966]
[1737153439685,0.36087385,104580.0,104570.0,0.25850966]
[1737153439984,0.36087385,104580.0,104570.0,0.26819234]
[1737153442487,0.36087385,104580.0,104570.0,0.15317468]
[1737153442786,0.36087385,104580.0,104570.0,0.21068351]
[1737153442976,0.36087385,104580.0,104570.0,0.26819234]
[1737153444388,0.36087385,104580.0,104570.0,0.21068351]
[1737153446291,0.72167385,104580.0,104570.0,0.21068351]
[1737153447687,0.72167385,104580.0,104570.0,0.26819234]
[1737153448891,7.385e-05,104580.0,104570.0,0.26819234]
[1737153455301,8.5e-07,104580.0,104570.0,0.92899234]
[1737153455499,0.61677896,104600.0,104570.0,0.68650117]
[1737153455500,0.5766,104600.0,104570.0,0.68650117]
[1737153455801,0.37067432,104610.0,104600.0,0.047779]
[1737153455992,0.3608,104610.0,104600.0,0.16279666]
[1737153456689,0.47530126,104630.0,104600.0,0.98968449]
[1737153456996,0.47530126,104630.0,104620.0,0.16278766]
[1737153456997,0.11450126,104630.0,104620.0,0.16278766]
[1737153457191,0.56767523,104640.0,104620.0,0.16278766]
[1737153457496,0.56767523,104640.0,104630.0,0.10527383]
[1737153457894,0.4245346,104640.0,104630.0,0.10527383]
[1737153458300,0.3922,104640.0,104630.0,0.10527383]
[1737153459002,0.3922,104640.0,104630.0,0.67631735]
[1737153459294,0.3922,104640.0,104630.0,0.61880852]
[1737153459487,0.3922,104640.0,104630.0,0.70643652]
[1737153461196,0.4234,104650.0,104630.0,1.06723652]
[1737153461397,0.4234,104650.0,104640.0,0.135389]
[1737153462693,0.4234,104650.0,104640.0,0.73743159]
[1737153464296,0.4554,104650.0,104640.0,0.73743159]
[1737153468708,0.503156,104650.0,104640.0,0.73743159]
[1737153469409,0.112356,104650.0,104640.0,0.73743159]
[1737153469612,0.112356,104650.0,104640.0,0.75743159]
[1737153470708,0.473156,104650.0,104640.0,0.62204259]
[1737153471015,0.560784,104650.0,104640.0,0.62204259]
[1737153471500,0.560784,104650.0,104640.0,0.5646238]
[1737153471901,0.473156,104650.0,104640.0,0.5646238]
[1737153472112,0.560784,104650.0,104640.0,0.5446238]
[1737153472417,0.560784,104650.0,104640.0,0.5646238]
[1737153473311,0.560784,104650.0,104640.0,0.02]
[1737153473507,0.513028,104650.0,104630.0,0.28410669]
[1737153473703,0.408561,104640.0,104630.0,0.28410669]
[1737153474711,0.408561,104640.0,104630.0,0.62403112]
[1737153475516,0.047761,104640.0,104630.0,0.62403112]
[1737153476412,0.408561,104640.0,104630.0,0.62403112]
[1737153476804,0.408561,104640.0,104630.0,0.33992443]
[1737153477007,0.408561,104640.0,104630.0,0.68144991]
[1737153477515,0.047761,104640.0,104630.0,0.68144991]
[1737153477715,0.408561,104640.0,104630.0,0.68144991]
[1737153478420,0.047761,104640.0,104630.0,0.68144991]
[1737153479225,0.408561,104640.0,104630.0,0.68144991]
[1737153479410,0.439461,104640.0,104630.0,0.68144991]
[1737153479610,0.439461,104640.0,104630.0,1.14409874]
[1737153480412,0.078661,104640.0,104630.0,1.14409874]
[1737153480815,0.078661,104640.0,104630.0,0.72921491]
[1737153482016,0.078661,104640.0,104630.0,0.38768943]
[1737153483307,0.078661,104640.0,104630.0,0.81664813]
[1737153484613,0.078661,104640.0,104630.0,1.16813512]
[1737153487312,0.48292357,104650.0,104630.0,1.62613728]
[1737153487511,0.047761,104640.0,104630.0,1.62613728]
[1737153487711,0.047761,104640.0,104630.0,1.98693728]
[1737153488717,0.047761,104640.0,104630.0,1.62613728]
[1737153488903,0.047761,104640.0,104630.0,1.98693728]
[1737153489721,0.49281448,104650.0,104630.0,1.98693728]
[1737153489909,0.047761,104640.0,104630.0,1.98693728]
[1737153490109,0.047761,104640.0,104630.0,1.62613728]
[1737153491419,0.52481448,104650.0,104630.0,1.68366085]
[1737153491718,0.57257348,104650.0,104640.0,0.047761]
[1737153493321,0.57257348,104650.0,104640.0,1.16813112]
[1737153493821,0.51504991,104650.0,104640.0,1.22565469]
[1737153494123,0.40269091,104650.0,104640.0,1.22565469]
[1737153494519,0.04189091,104650.0,104640.0,1.22565469]
[1737153494926,0.04189091,104650.0,104640.0,1.25585469]
[1737153494927,0.00989091,104650.0,104640.0,1.25585469]
[1737153495226,0.46607757,104660.0,104650.0,0.047756]
[1737153497528,0.47597944,104660.0,104650.0,0.81663913]
[1737153498925,0.47597944,104660.0,104650.0,1.70234453]
[1737153499724,0.47597944,104660.0,104650.0,1.7598681]
[1737153500026,0.47597944,104660.0,104650.0,1.70234453]
[1737153507231,0.33289358,104660.0,104650.0,1.70234453]
[1737153507823,0.33289358,104660.0,104650.0,0.81663913]
[1737153510432,0.33289358,104660.0,104650.0,1.29150219]
[1737153512133,0.47597944,104660.0,104650.0,1.29150219]
[1737153513334,0.53350301,104660.0,104650.0,1.29150219]
[1737153513537,0.47597944,104660.0,104650.0,1.29150219]
[1737153513931,0.47597944,104660.0,104650.0,1.69113934]
[1737153516432,0.47597944,104660.0,104650.0,0.81663913]
[1737153520939,0.41845587,104660.0,104650.0,0.81663913]
[1737153521340,0.47597944,104660.0,104650.0,0.81663913]
[1737153521633,0.41845587,104660.0,104650.0,0.81663913]
[1737153522034,0.47597944,104660.0,104650.0,0.81663913]
[1737153523838,0.11517944,104660.0,104650.0,0.81663913]
[1737153525338,0.05765587,104660.0,104650.0,0.8741627]
[1737153525641,0.05765587,104660.0,104650.0,0.9392627]
[1737153525841,0.05765587,104660.0,104650.0,1.75648068]
[1737153527340,0.11517944,104660.0,104650.0,1.75648068]
[1737153527745,0.05765587,104660.0,104650.0,1.75648068]
[1737153528045,0.11517944,104660.0,104650.0,1.72328068]
[1737153528244,0.05765587,104660.0,104650.0,1.72328068]
[1737153528636,0.05765587,104660.0,104650.0,1.78080425]
[1737153528846,0.11517944,104660.0,104650.0,1.72328068]
[1737153529043,0.05765587,104660.0,104650.0,1.72328068]
[1737153529949,0.49697257,104670.0,104650.0,1.72328068]
[1737153530248,0.047753,104660.0,104650.0,1.72328068]
[1737153530948,0.047753,104660.0,104650.0,1.78164569]
[1737153531650,0.10527657,104660.0,104650.0,1.78164569]
[1737153531949,0.047753,104660.0,104650.0,1.78164569]
[1737153533540,0.047753,104660.0,104650.0,2.18231234]
[1737153535045,0.047753,104660.0,104650.0,1.72431018]
[1737153537649,0.047753,104660.0,104650.0,2.18231234]
[1737153538942,0.49223742,104670.0,104650.0,2.18231234]
[1737153538943,0.36999042,104670.0,104650.0,2.18231234]
[1737153539349,0.047753,104660.0,104650.0,2.18231234]
[1737153540353,0.047753,104660.0,104650.0,1.78164569]
[1737153542145,0.047753,104660.0,104650.0,2.14244569]
[1737153542555,0.047753,104660.0,104650.0,1.78164569]
[1737153542856,0.41774042,104670.0,104650.0,1.82939869]
[1737153543056,0.41774042,104670.0,104650.0,2.18248723]
[1737153544460,0.41774042,104670.0,104650.0,1.72448507]
[1737153547558,0.41774042,104670.0,104650.0,1.72448407]
[1737153548262,0.41774042,104670.0,104660.0,0.047752]
[1737153550148,0.41774042,104670.0,104660.0,1.69258407]
[1737153553355,0.36021685,104670.0,104660.0,1.69258407]
[1737153553658,0.50908742,104670.0,104660.0,1.69258407]
[1737153554562,0.50908742,104670.0,104660.0,0.81663513]
[1737153558575,0.50908742,104670.0,104660.0,1.16039847]
[1737153558871,0.50908742,104670.0,104660.0,1.11264647]
[1737153559664,0.56661099,104670.0,104660.0,1.11264647]
[1737153559871,0.62360788,104670.0,104660.0,0.68368777]
[1737153560368,0.68113145,104670.0,104660.0,0.68368777]
[1737153560557,0.62360788,104670.0,104660.0,0.68368777]
[1737153560768,0.68113145,104670.0,104660.0,0.68368777]
[1737153561061,0.56661099,104670.0,104660.0,0.68368777]
[1737153562368,0.56661099,104670.0,104660.0,1.07809752]
[1737153562666,0.62413456,104670.0,104660.0,1.06704134]
[1737153562865,0.61435999,104670.0,104650.0,0.23606772]
[1737153563167,0.58709914,104660.0,104650.0,0.23606772]
[1737153563865,0.77799177,104660.0,104650.0,0.28643306]
[1737153564060,0.77799177,104660.0,104650.0,0.22433061]
[1737153565668,0.77799177,104660.0,104650.0,0.40059962]
[1737153568262,0.77799177,104660.0,104650.0,0.17168555]
[1737153569367,0.74919981,104660.0,104650.0,0.17168555]
[1737153575570,0.76355982,104660.0,104650.0,0.17168555]
[1737153577372,0.047756,104650.0,104640.0,0.40059962]
[1737153577677,0.46607957,104650.0,104640.0,0.40059962]
[1737153578277,0.52360314,104650.0,104640.0,0.40059962]
[1737153578780,0.55680314,104650.0,104640.0,0.40059962]
[1737153579584,0.67115181,104650.0,104640.0,0.22891407]
[1737153580085,0.61362824,104650.0,104640.0,0.22891407]
[1737153580275,0.67115181,104650.0,104640.0,0.22891407]
[1737153580582,0.55680314,104650.0,104640.0,0.22891407]
[1737153581785,0.55680314,104650.0,104640.0,0.16510504]
[1737153582189,0.67115181,104650.0,104640.0,0.16510504]
[1737153583679,0.71891081,104650.0,104640.0,0.17148335]
[1737153584785,0.73118833,104650.0,104640.0,0.17148335]
[1737153586284,0.73118833,104650.0,104640.0,0.12997335]
[1737153586485,0.047761,104640.0,104630.0,0.12997335]
[1737153586683,1.06832814,104640.0,104630.0,0.12997335]
[1737153587978,1.1826792,104640.0,104620.0,0.03]
[1737153588184,0.46608857,104630.0,104620.0,0.02688459]
[1737153588592,0.26357,104620.0,104610.0,0.45613871]
[1737153588886,0.32109357,104620.0,104610.0,0.45613871]
[1737153590584,0.32109357,104620.0,104610.0,0.73085779]
[1737153591890,0.32109357,104620.0,104610.0,0.76125779]
[1737153592489,0.10529357,104620.0,104610.0,0.76125779]
[1737153594292,0.12049223,104620.0,104610.0,0.76125779]
[1737153599988,0.48129623,104620.0,104610.0,0.76125779]
[1737153600188,0.37599866,104620.0,104610.0,0.76125779]
[1737153600500,0.43352223,104620.0,104610.0,0.76125779]
[1737153600883,1.03663706,104640.0,104620.0,0.047771]
[1737153601091,1.09416063,104640.0,104630.0,0.0919]
[1737153601290,1.09416063,104640.0,104630.0,0.13967]
[1737153601798,1.10812887,104640.0,104630.0,0.13967]
[1737153602099,1.11788644,104640.0,104630.0,0.13967]
[1737153603999,1.00353538,104640.0,104630.0,0.69844086]
[1737153605404,0.88848824,104640.0,104630.0,0.69844086]
[1737153605605,1.00353538,104640.0,104630.0,0.69844086]
[1737153606297,1.11788644,104640.0,104630.0,0.13967]
[1737153607705,1.00353538,104640.0,104630.0,0.42535833]
[1737153608605,1.00353538,104640.0,104630.0,0.70840166]
[1737153609903,1.11788644,104640.0,104630.0,0.70840166]
[1737153611807,1.16565244,104640.0,104630.0,0.70840166]
[1737153613605,1.10812887,104640.0,104630.0,0.70840166]
[1737153613809,1.16565244,104640.0,104630.0,0.70840166]
[1737153614001,0.65193244,104640.0,104630.0,0.70840166]
[1737153618207,0.70945601,104640.0,104630.0,0.48370279]
[1737153618402,0.77565601,104640.0,104630.0,0.48370279]
[1737153619002,0.77565601,104640.0,104630.0,0.423788]
[1737153620213,0.71813244,104640.0,104630.0,0.423788]
[1737153620412,0.047776,104620.0,104600.0,0.51197128]
[1737153620608,0.3608,104610.0,104600.0,0.51197128]
[1737153620804,0.41832357,104610.0,104600.0,0.45444771]
[1737153621915,0.41832357,104610.0,104600.0,1.06816033]
[1737153623114,0.41832357,104610.0,104600.0,0.73443099]
[1737153623417,0.41832357,104610.0,104600.0,0.79195456]
[1737153623918,0.41832357,104610.0,104600.0,0.73443099]
[1737153627016,0.43198057,104610.0,104600.0,0.73443099]
[1737153635717,0.43198057,104610.0,104600.0,0.79195456]
[1737153636926,0.43198057,104610.0,104600.0,0.44898785]
[1737153638025,0.43198057,104610.0,104600.0,0.39146428]
[1737153638627,0.07118057,104610.0,104600.0,0.39146428]
[1737153640327,0.07118057,104610.0,104600.0,0.44898785]
[1737153641431,0.013657,104610.0,104600.0,0.44898785]
[1737153641623,0.53179957,104620.0,104610.0,0.047779]
[1737153642125,0.58932314,104620.0,104610.0,0.047779]
[1737153642933,0.58932314,104620.0,104610.0,0.32776228]
[1737153645246,0.70379306,104620.0,104610.0,0.32776228]
[1737153645836,0.71746966,104620.0,104610.0,0.32776228]
[1737153649144,0.60299974,104620.0,104610.0,0.32776228]
[1737153650450,0.60299974,104620.0,104610.0,0.61443371]
[1737153655448,0.71759455,104620.0,104610.0,0.61443371]
[1737153656749,0.71759455,104620.0,104610.0,1.0052503]
[1737153660055,0.71759455,104620.0,104610.0,0.67072899]
[1737153661454,0.71759455,104620.0,104610.0,0.95740646]
[1737153661455,0.86068195,104620.0,104610.0,0.95740646]
[1737153662756,0.60299974,104620.0,104610.0,0.61443975]
[1737153667158,0.71757682,104620.0,104610.0,0.61443975]
[1737153668152,0.66005325,104620.0,104610.0,0.61443975]
[1737153668554,0.66005325,104620.0,104610.0,0.67072899]
[1737153669664,0.71757682,104620.0,104610.0,0.67072899]
[1737153672255,0.66005325,104620.0,104610.0,0.67072899]
[1737153672669,0.66005325,104620.0,104610.0,0.6144043]
[1737153673866,0.71757682,104620.0,104610.0,0.5666253]
[1737153675155,0.60299974,104620.0,104610.0,0.5666253]
[1737153676568,0.74608714,104620.0,104610.0,0.5666253]
[1737153680367,0.86062044,104620.0,104610.0,0.5666253]
[1737153681778,0.71753304,104620.0,104610.0,0.5666253]
[1737153684269,0.74608714,104620.0,104610.0,0.5666253]
[1737153687079,0.74608714,104620.0,104610.0,0.28664202]
[1737153688279,0.71750796,104620.0,104610.0,0.28664202]
[1737153689680,0.74608714,104620.0,104610.0,0.57124759]
[1737153690681,0.60299974,104620.0,104610.0,0.57124759]
[1737153691680,0.74608714,104620.0,104610.0,0.57124759]
[1737153694982,0.74608714,104620.0,104610.0,0.55151415]
[1737153705893,1.10688714,104620.0,104610.0,0.55151415]
[1737153711888,1.04936357,104620.0,104610.0,0.55151415]
[1737153723106,1.04936357,104620.0,104610.0,0.55450086]
[1737153723503,1.16398518,104620.0,104610.0,0.55450086]
[1737153725111,1.16398518,104620.0,104610.0,0.55151415]
[1737153726202,1.02089778,104620.0,104610.0,0.55450094]
[1737153726502,1.02089778,104620.0,104610.0,0.55450088]
[1737153727711,1.16398518,104620.0,104610.0,0.55450088]
[1737153728407,1.10646161,104620.0,104610.0,0.55450088]
[1737153734510,0.99184,104620.0,104610.0,0.55450088]
[1737153736110,0.99184,104620.0,104610.0,0.55151415]
[1737153737202,1.10639546,104620.0,104610.0,0.55450088]
[1737153738307,1.2214426,104620.0,104610.0,0.55450088]
[1737153738605,1.10688714,104620.0,104610.0,0.55450088]
[1737153742314,1.10688714,104620.0,104610.0,0.55450096]
[1737153743419,0.99184,104620.0,104610.0,0.55450096]
[1737153743619,1.10688714,104620.0,104610.0,0.55450096]
[1737153748418,1.10688714,104620.0,104610.0,0.554501]
[1737153749919,1.10688714,104620.0,104610.0,0.55450096]
[1737153752126,1.10688714,104620.0,104610.0,0.55450128]
[1737153752623,1.10688714,104620.0,104610.0,0.23231611]
[1737153753327,1.16441071,104620.0,104610.0,0.23231611]
[1737153753827,1.19177995,104620.0,104610.0,0.40422754]
[1737153755821,1.19177995,104620.0,104610.0,0.40124041]
[1737153756027,1.19177995,104620.0,104610.0,0.36612756]
[1737153756233,1.3348601,104620.0,104610.0,0.36612756]
[1737153756727,1.3348601,104620.0,104610.0,0.03532477]
[1737153757526,1.16440346,104620.0,104610.0,0.03532477]
[1737153757928,1.16440346,104620.0,104610.0,0.03532494]
[1737153758332,1.19177995,104620.0,104610.0,0.03532494]
[1737153758530,1.19177995,104620.0,104590.0,0.26400628]
[1737153758731,0.88443114,104600.0,104590.0,0.26699361]